[Event "MCR rapid mládeže 2023 U16"]
[Site "Harachov, Czech Republic"]
[Date "2023.09.09"]
[Round "2.7"]
[White "Andrle, Filip"]
[Black "Striz, Tadeas"]
[Result "1-0"]
[TimeControl "20min+5s/move"]
[WhiteElo "1649"]
[BlackElo "1454"]

1. e4 {[%clk 00:20:07]} {[%emt 00:00:01]} c5 {[%clk 00:20:09]} {[%emt
00:00:01]} 2. c4 {[%clk 00:20:04]} {[%emt 00:00:09]} Nc6 {[%clk 00:19:56]}
{[%emt 00:00:18]} 3. Nc3 {[%clk 00:20:06]} {[%emt 00:00:03]} g6 {[%clk
00:19:52]} {[%emt 00:00:09]} 4. g3 {[%clk 00:20:04]} {[%emt 00:00:07]} Bg7
{[%clk 00:19:55]} {[%emt 00:00:02]} 5. Bg2 {[%clk 00:20:05]} {[%emt 00:00:04]}
e6 {[%clk 00:19:27]} {[%emt 00:00:33]} 6. Nge2 {[%clk 00:20:01]} {[%emt
00:00:08]} Nge7 {[%clk 00:19:30]} {[%emt 00:00:03]} 7. O-O {[%clk 00:19:57]}
{[%emt 00:00:09]} O-O {[%clk 00:19:25]} {[%emt 00:00:09]} 8. d3 {[%clk
00:19:51]} {[%emt 00:00:11]} Nd4 {[%clk 00:17:53]} {[%emt 00:01:38]} 9. Nxd4
{[%clk 00:19:33]} {[%emt 00:00:22]} Bxd4 {[%clk 00:17:33]} {[%emt 00:00:25]} 10.
Ne2 {[%clk 00:18:47]} {[%emt 00:00:52]} Nc6 {[%clk 00:14:56]} {[%emt 00:02:42]}
11. Nxd4 {[%clk 00:18:31]} {[%emt 00:00:21]} Nxd4 {[%clk 00:14:43]} {[%emt
00:00:18]} 12. Rb1 {[%clk 00:15:53]} {[%emt 00:02:44]} Qb6 {[%clk 00:13:06]}
{[%emt 00:01:42]} 13. Bd2 {[%clk 00:14:32]} {[%emt 00:01:25]} Nc6 {[%clk
00:11:43]} {[%emt 00:01:28]} 14. Bc3 {[%clk 00:13:34]} {[%emt 00:01:03]} e5
{[%clk 00:11:38]} {[%emt 00:00:10]} 15. f4 {[%clk 00:13:03]} {[%emt 00:00:35]}
exf4 {[%clk 00:10:11]} {[%emt 00:01:32]} 16. Rxf4 {[%clk 00:11:45]} {[%emt
00:01:24]} d6 {[%clk 00:08:44]} {[%emt 00:01:32]} 17. Qd2 {[%clk 00:10:30]}
{[%emt 00:01:20]} Qc7 {[%clk 00:05:20]} {[%emt 00:03:28]} 18. Rbf1 {[%clk
00:09:28]} {[%emt 00:01:07]} f5 {[%clk 00:04:34]} {[%emt 00:00:52]} 19. exf5
{[%clk 00:09:18]} {[%emt 00:00:15]} Bxf5 {[%clk 00:04:38]} {[%emt 00:00:01]} 20.
Bd5+ {[%clk 00:09:16]} {[%emt 00:00:07]} Rf7 {[%clk 00:04:30]} {[%emt
00:00:13]} 21. Rxf5 {[%clk 00:08:01]} {[%emt 00:01:21]} gxf5 {[%clk 00:04:25]}
{[%emt 00:00:10]} 22. Rxf5 {[%clk 00:07:23]} {[%emt 00:00:43]} Nd8 {[%clk
00:04:02]} {[%emt 00:00:29]} 23. Qh6 {[%clk 00:06:10]} {[%emt 00:01:18]} 1-0

[Event "MCR rapid mládeže 2023 U16"]
[Site "Harachov, Czech Republic"]
[Date "2023.09.09"]
[Round "2.8"]
[White "Krajicek, Matej"]
[Black "Jasso, Matej"]
[Result "1-0"]
[TimeControl "20min+5s/move"]
[WhiteElo "1565"]
[BlackElo "1794"]

1. Nf3 {[%clk 00:20:02]} {[%emt 00:00:06]} Nf6 {[%clk 00:19:49]} {[%emt
00:00:21]} 2. c4 {[%clk 00:20:06]} {[%emt 00:00:02]} e6 {[%clk 00:19:51]}
{[%emt 00:00:03]} 3. Nc3 {[%clk 00:20:09]} {[%emt 00:00:02]} d5 {[%clk
00:19:54]} {[%emt 00:00:01]} 4. d4 {[%clk 00:19:56]} {[%emt 00:00:18]} Bb4
{[%clk 00:19:55]} {[%emt 00:00:05]} 5. Qa4+ {[%clk 00:19:16]} {[%emt 00:00:45]}
Nc6 {[%clk 00:19:58]} {[%emt 00:00:02]} 6. e3 {[%clk 00:19:19]} {[%emt
00:00:01]} O-O {[%clk 00:19:54]} {[%emt 00:00:08]} 7. Bd2 {[%clk 00:19:05]}
{[%emt 00:00:20]} Bd7 {[%clk 00:17:15]} {[%emt 00:02:44]} 8. Qc2 {[%clk
00:18:40]} {[%emt 00:00:30]} Re8 {[%clk 00:16:37]} {[%emt 00:00:43]} 9. a3
{[%clk 00:16:14]} {[%emt 00:02:32]} Bxc3 {[%clk 00:16:29]} {[%emt 00:00:13]} 10.
Bxc3 {[%clk 00:15:54]} {[%emt 00:00:25]} Ne4 {[%clk 00:15:59]} {[%emt
00:00:35]} 11. Bd3 {[%clk 00:15:09]} {[%emt 00:00:51]} f5 {[%clk 00:15:38]}
{[%emt 00:00:26]} 12. O-O {[%clk 00:15:00]} {[%emt 00:00:14]} Qf6 {[%clk
00:15:25]} {[%emt 00:00:18]} 13. Rad1 {[%clk 00:13:59]} {[%emt 00:01:05]} g5
{[%clk 00:14:50]} {[%emt 00:00:40]} 14. Ne5 {[%clk 00:13:27]} {[%emt 00:00:37]}
Nxe5 {[%clk 00:11:10]} {[%emt 00:03:45]} 15. dxe5 {[%clk 00:13:21]} {[%emt
00:00:11]} Qf7 {[%clk 00:10:15]} {[%emt 00:01:01]} 16. Bxe4 {[%clk 00:08:08]}
{[%emt 00:05:18]} dxe4 {[%clk 00:10:12]} {[%emt 00:00:08]} 17. Rd4 {[%clk
00:07:56]} {[%emt 00:00:16]} Bc6 {[%clk 00:09:42]} {[%emt 00:00:35]} 18. Rfd1
{[%clk 00:07:42]} {[%emt 00:00:19]} f4 {[%clk 00:09:39]} {[%emt 00:00:08]} 19.
b4 {[%clk 00:07:02]} {[%emt 00:00:46]} b5 {[%clk 00:07:56]} {[%emt 00:01:48]}
20. cxb5 {[%clk 00:06:28]} {[%emt 00:00:39]} Bd5 {[%clk 00:07:57]} {[%emt
00:00:04]} 21. Bb2 {[%clk 00:03:20]} {[%emt 00:03:12]} Re7 {[%clk 00:06:23]}
{[%emt 00:01:40]} 22. exf4 {[%clk 00:01:46]} {[%emt 00:01:39]} gxf4 {[%clk
00:05:54]} {[%emt 00:00:34]} 23. Bc1 {[%clk 00:00:45]} {[%emt 00:01:06]} Rf8
{[%clk 00:05:43]} {[%emt 00:00:16]} 24. Qd2 {[%clk 00:00:23]} {[%emt 00:00:27]}
Qg6 {[%clk 00:03:38]} {[%emt 00:02:10]} 25. Rxd5 {[%clk 00:00:12]} {[%emt
00:00:16]} exd5 {[%clk 00:03:26]} {[%emt 00:00:17]} 26. Qxd5+ {[%clk 00:00:15]}
{[%emt 00:00:03]} Qe6 {[%clk 00:03:22]} {[%emt 00:00:08]} 27. Qd2 {[%clk
00:00:01]} {[%emt 00:00:13]} Rg7 {[%clk 00:02:46]} {[%emt 00:00:40]} 28. Kh1
{[%clk 00:00:06]} {[%emt 00:00:06]} Qg4 {[%clk 00:01:50]} {[%emt 00:01:01]} 29.
Rg1 {[%clk 00:00:07]} {[%emt 00:00:04]} h5 {[%clk 00:00:56]} {[%emt 00:00:59]}
30. Qd5+ {[%clk 00:00:10]} {[%emt 00:00:02]} Kh8 {[%clk 00:00:14]} {[%emt
00:00:47]} 31. Qxe4 {[%clk 00:00:13]} {[%emt 00:00:01]} f3 {[%clk 00:00:19]} 32.
Qxg4 {[%clk 00:00:16]} {[%emt 00:00:03]} Rxg4 {[%clk 00:00:13]} {[%emt
00:00:11]} 33. gxf3 {[%clk 00:00:06]} {[%emt 00:00:15]} Rxf3 {[%clk 00:00:06]}
{[%emt 00:00:13]} 34. Rxg4 {[%clk 00:00:07]} {[%emt 00:00:03]} hxg4 {[%clk
00:00:10]} 35. Be3 {[%clk 00:00:11]} {[%emt 00:00:01]} Kg7 {[%clk 00:00:10]}
{[%emt 00:00:05]} 36. a4 {[%clk 00:00:15]} {[%emt 00:00:02]} Rf5 {[%clk
00:00:08]} {[%emt 00:00:06]} 37. Bxa7 {[%clk 00:00:18]} {[%emt 00:00:02]} Kf7
{[%clk 00:00:12]} {[%emt 00:00:01]} 38. Bb8 {[%clk 00:00:20]} {[%emt 00:00:03]}
Rxe5 {[%clk 00:00:12]} {[%emt 00:00:05]} 39. Bxc7 {[%clk 00:00:24]} Re4 {[%clk
00:00:15]} {[%emt 00:00:02]} 40. Bd6 {[%clk 00:00:27]} {[%emt 00:00:02]} Ke6
{[%clk 00:00:19]} {[%emt 00:00:01]} 41. Bc5 {[%clk 00:00:31]} {[%emt 00:00:01]}
Kf5 {[%clk 00:00:20]} {[%emt 00:00:04]} 42. a5 {[%clk 00:00:28]} {[%emt
00:00:08]} Ke6 {[%clk 00:00:15]} {[%emt 00:00:10]} 43. Kg2 {[%clk 00:00:31]}
{[%emt 00:00:01]} Kd5 {[%clk 00:00:12]} {[%emt 00:00:09]} 44. a6 {[%clk
00:00:26]} {[%emt 00:00:10]} Re8 {[%clk 00:00:08]} {[%emt 00:00:09]} 45. b6
{[%clk 00:00:26]} {[%emt 00:00:05]} Kc6 {[%clk 00:00:11]} {[%emt 00:00:02]} 46.
Kg3 {[%clk 00:00:27]} {[%emt 00:00:04]} Ra8 {[%clk 00:00:08]} {[%emt 00:00:04]}
47. b7 {[%clk 00:00:23]} {[%emt 00:00:13]} Re8 {[%clk 00:00:09]} {[%emt
00:00:03]} 48. Kxg4 {[%clk 00:00:22]} {[%emt 00:00:06]} Kc7 {[%clk 00:00:06]}
{[%emt 00:00:08]} 49. f4 {[%clk 00:00:20]} {[%emt 00:00:07]} Kb8 {[%clk
00:00:10]} {[%emt 00:00:01]} 50. f5 {[%clk 00:00:17]} {[%emt 00:00:08]} Rg8+
{[%clk 00:00:09]} {[%emt 00:00:05]} 51. Kf4 {[%clk 00:00:21]} {[%emt 00:00:02]}
Rh8 {[%clk 00:00:08]} {[%emt 00:00:06]} 52. f6 {[%clk 00:00:22]} {[%emt
00:00:03]} Rh6 {[%clk 00:00:08]} {[%emt 00:00:05]} 53. Bd6+ {[%clk 00:00:26]}
{[%emt 00:00:01]} Ka7 {[%clk 00:00:11]} {[%emt 00:00:02]} 54. b8=Q+ {[%clk
00:00:29]} {[%emt 00:00:02]} 1-0

[Event "MCR rapid mládeže 2023 U16"]
[Site "Harachov, Czech Republic"]
[Date "2023.09.09"]
[Round "2.9"]
[White "Lackova, Ludmila"]
[Black "Dorazilova, Kristyna"]
[Result "0-1"]
[TimeControl "20min+5s/move"]
[WhiteElo "1479"]
[BlackElo "1517"]

1. d4 {[%clk 00:20:08]} {[%emt 00:00:02]} Nf6 {[%clk 00:20:09]} {[%emt
00:00:02]} 2. c4 {[%clk 00:20:12]} {[%emt 00:00:01]} e6 {[%clk 00:20:13]}
{[%emt 00:00:02]} 3. Nc3 {[%clk 00:20:12]} {[%emt 00:00:04]} b6 {[%clk
00:20:14]} {[%emt 00:00:04]} 4. Nf3 {[%clk 00:20:08]} {[%emt 00:00:09]} Bb7
{[%clk 00:20:17]} {[%emt 00:00:01]} 5. g3 {[%clk 00:20:09]} {[%emt 00:00:04]}
c5 {[%clk 00:20:10]} {[%emt 00:00:12]} 6. dxc5 {[%clk 00:19:33]} {[%emt
00:00:40]} Bxc5 {[%clk 00:20:13]} {[%emt 00:00:02]} 7. Bg2 {[%clk 00:19:36]}
{[%emt 00:00:02]} Nc6 {[%clk 00:19:43]} {[%emt 00:00:35]} 8. O-O {[%clk
00:19:21]} {[%emt 00:00:19]} O-O {[%clk 00:19:39]} {[%emt 00:00:09]} 9. Bg5
{[%clk 00:19:05]} {[%emt 00:00:21]} Be7 {[%clk 00:19:14]} {[%emt 00:00:31]} 10.
b3 {[%clk 00:17:45]} {[%emt 00:01:25]} h6 {[%clk 00:19:14]} {[%emt 00:00:05]}
11. Bf4 {[%clk 00:16:27]} {[%emt 00:01:22]} d6 {[%clk 00:17:20]} {[%emt
00:02:01]} 12. Nb5 {[%clk 00:14:14]} {[%emt 00:02:18]} Ne8 {[%clk 00:15:57]}
{[%emt 00:01:27]} 13. Qd2 {[%clk 00:11:19]} {[%emt 00:02:58]} a6 {[%clk
00:15:14]} {[%emt 00:00:50]} 14. Nc3 {[%clk 00:10:52]} {[%emt 00:00:31]} Qd7
{[%clk 00:13:51]} {[%emt 00:01:28]} 15. Rfd1 {[%clk 00:07:49]} {[%emt
00:03:08]} Rd8 {[%clk 00:13:34]} {[%emt 00:00:23]} 16. Be3 {[%clk 00:05:55]}
{[%emt 00:01:58]} Rc8 {[%clk 00:09:55]} {[%emt 00:03:44]} 17. Bxb6 {[%clk
00:05:35]} {[%emt 00:00:26]} Nf6 {[%clk 00:09:06]} {[%emt 00:00:54]} 18. Be3
{[%clk 00:05:18]} {[%emt 00:00:22]} Rfd8 {[%clk 00:08:16]} {[%emt 00:00:55]} 19.
Ne1 {[%clk 00:03:34]} {[%emt 00:01:48]} Ne5 {[%clk 00:07:36]} {[%emt 00:00:46]}
20. Bb6 {[%clk 00:03:12]} {[%emt 00:00:27]} Re8 {[%clk 00:07:16]} {[%emt
00:00:26]} 21. Bxb7 {[%clk 00:01:14]} {[%emt 00:02:02]} Qxb7 {[%clk 00:07:20]}
{[%emt 00:00:02]} 22. Bd4 {[%clk 00:01:12]} {[%emt 00:00:05]} Nc6 {[%clk
00:05:50]} {[%emt 00:01:36]} 23. Bxf6 {[%clk 00:01:09]} {[%emt 00:00:09]} Bxf6
{[%clk 00:05:54]} 24. Rac1 {[%clk 00:00:55]} {[%emt 00:00:19]} Red8 {[%clk
00:05:48]} {[%emt 00:00:11]} 25. Ne4 {[%clk 00:00:55]} {[%emt 00:00:04]} Be7
{[%clk 00:05:27]} {[%emt 00:00:27]} 26. Nf3 {[%clk 00:00:59]} {[%emt 00:00:01]}
Nb4 {[%clk 00:03:58]} {[%emt 00:01:33]} 27. Nc3 {[%clk 00:00:56]} {[%emt
00:00:07]} d5 {[%clk 00:02:50]} {[%emt 00:01:14]} 28. cxd5 {[%clk 00:00:51]}
{[%emt 00:00:11]} Nxd5 {[%clk 00:02:32]} {[%emt 00:00:23]} 29. Nxd5 {[%clk
00:00:54]} {[%emt 00:00:01]} Rxd5 {[%clk 00:02:12]} {[%emt 00:00:26]} 30. Rxc8+
{[%clk 00:00:45]} {[%emt 00:00:14]} Qxc8 {[%clk 00:02:15]} {[%emt 00:00:01]} 31.
Qc1 {[%clk 00:00:43]} {[%emt 00:00:05]} Qxc1 {[%clk 00:01:46]} {[%emt
00:00:37]} 32. Rxc1 {[%clk 00:00:47]} Rc5 {[%clk 00:01:11]} {[%emt 00:00:40]}
33. Rxc5 Bxc5 {[%clk 00:01:15]} 34. Ne5 {[%clk 00:00:46]} {[%emt 00:00:07]} f6
{[%clk 00:01:03]} {[%emt 00:00:18]} 35. Nd7 {[%clk 00:00:49]} {[%emt 00:00:01]}
Ba7 {[%clk 00:00:50]} {[%emt 00:00:17]} 36. b4 {[%clk 00:00:45]} {[%emt
00:00:09]} Kf7 {[%clk 00:00:47]} {[%emt 00:00:07]} 37. Kf1 {[%clk 00:00:44]}
{[%emt 00:00:06]} a5 {[%clk 00:00:30]} {[%emt 00:00:22]} 38. a3 {[%clk
00:00:47]} {[%emt 00:00:02]} axb4 {[%clk 00:00:21]} {[%emt 00:00:15]} 39. axb4
{[%clk 00:00:51]} {[%emt 00:00:01]} Ke7 {[%clk 00:00:24]} 40. Nc5 {[%clk
00:00:55]} {[%emt 00:00:03]} Bxc5 {[%clk 00:00:28]} 41. bxc5 {[%clk 00:00:59]}
{[%emt 00:00:02]} Kd7 {[%clk 00:00:32]} 42. e3 {[%clk 00:01:00]} {[%emt
00:00:04]} Kc6 {[%clk 00:00:37]} 43. Ke2 {[%clk 00:01:02]} {[%emt 00:00:02]}
Kxc5 {[%clk 00:00:41]} 44. Kd3 {[%clk 00:01:06]} Kd5 {[%clk 00:00:46]} {[%emt
00:00:01]} 45. e4+ {[%clk 00:01:08]} {[%emt 00:00:03]} Kc5 {[%clk 00:00:50]}
{[%emt 00:00:01]} 46. f4 {[%clk 00:00:57]} {[%emt 00:00:16]} e5 {[%clk
00:00:44]} {[%emt 00:00:11]} 47. f5 {[%clk 00:00:52]} {[%emt 00:00:10]} h5
{[%clk 00:00:41]} {[%emt 00:00:07]} 48. h3 {[%clk 00:00:51]} {[%emt 00:00:05]}
Kb5 {[%clk 00:00:37]} {[%emt 00:00:07]} 49. g4 {[%clk 00:00:42]} {[%emt
00:00:17]} h4 {[%clk 00:00:30]} {[%emt 00:00:13]} 50. Kc3 {[%clk 00:00:39]}
{[%emt 00:00:08]} Kc5 {[%clk 00:00:34]} 51. Kd3 {[%clk 00:00:43]} Kb4 {[%clk
00:00:37]} {[%emt 00:00:03]} 52. Ke2 {[%clk 00:00:27]} {[%emt 00:00:21]} Kc3
{[%clk 00:00:27]} {[%emt 00:00:14]} 53. Ke3 {[%clk 00:00:12]} {[%emt 00:00:20]}
Kc4 {[%clk 00:00:32]} 54. Ke2 {[%clk 00:00:15]} {[%emt 00:00:02]} Kd4 {[%clk
00:00:36]} {[%emt 00:00:01]} 55. Kf3 {[%clk 00:00:19]} Kd3 {[%clk 00:00:40]} 56.
g5 {[%clk 00:00:22]} {[%emt 00:00:02]} fxg5 {[%clk 00:00:41]} {[%emt 00:00:04]}
57. Kg4 {[%clk 00:00:26]} {[%emt 00:00:02]} Kxe4 {[%emt 00:00:03]} 58. Kxg5
{[%emt 00:00:01]} Kf3 {[%clk 00:00:39]} {[%emt 00:00:07]} 59. Kg6 {[%clk
00:00:34]} {[%emt 00:00:02]} Kf4 {[%clk 00:00:33]} {[%emt 00:00:11]} 60. Kh5
{[%clk 00:00:38]} {[%emt 00:00:01]} Kxf5 {[%clk 00:00:34]} {[%emt 00:00:04]} 61.
Kxh4 {[%clk 00:00:42]} e4 {[%clk 00:00:38]} {[%emt 00:00:01]} 62. Kh5 {[%clk
00:00:46]} e3 {[%clk 00:00:40]} {[%emt 00:00:03]} 63. h4 {[%clk 00:00:50]} g6
{[%clk 00:00:38]} {[%emt 00:00:08]} 64. Kh6 {[%clk 00:00:55]} e2 {[%clk
00:00:41]} {[%emt 00:00:01]} 65. Kh7 {[%clk 00:00:41]} {[%emt 00:00:18]} e1=Q
{[%clk 00:00:43]} {[%emt 00:00:03]} 66. Kg7 {[%clk 00:00:45]} {[%emt 00:00:01]}
Qe7+ {[%clk 00:00:43]} {[%emt 00:00:04]} 67. Kh8 {[%clk 00:00:49]} {[%emt
00:00:01]} g5 {[%clk 00:00:32]} {[%emt 00:00:16]} 68. hxg5 {[%clk 00:00:53]}
{[%emt 00:00:01]} Kxg5 {[%clk 00:00:33]} {[%emt 00:00:03]} 69. Kg8 {[%clk
00:00:57]} Kg6 {[%clk 00:00:37]} {[%emt 00:00:03]} 70. Kh8 {[%clk 00:01:01]}
{[%emt 00:00:01]} Qg7# {[%clk 00:00:41]} {[%emt 00:00:01]} 0-1

[Event "MCR rapid mládeže 2023 U16"]
[Site "Harachov, Czech Republic"]
[Date "2023.09.09"]
[Round "2.10"]
[White "Kaplanova, Dominika"]
[Black "Bartova, Hana"]
[Result "1/2-1/2"]
[TimeControl "20min+5s/move"]
[WhiteElo "1461"]
[BlackElo "1389"]

1. e4 {[%clk 00:20:08]} {[%emt 00:00:01]} e5 {[%clk 00:20:09]} {[%emt
00:00:02]} 2. Nf3 {[%clk 00:20:05]} {[%emt 00:00:07]} Nf6 {[%clk 00:20:11]}
{[%emt 00:00:02]} 3. Nc3 {[%clk 00:19:53]} {[%emt 00:00:18]} Nc6 {[%clk
00:20:14]} {[%emt 00:00:02]} 4. Bb5 {[%clk 00:19:23]} {[%emt 00:00:34]} Nd4
{[%clk 00:20:13]} {[%emt 00:00:07]} 5. d3 {[%clk 00:18:15]} {[%emt 00:01:14]}
Nxb5 {[%clk 00:18:13]} {[%emt 00:02:05]} 6. Nxb5 {[%clk 00:18:17]} {[%emt
00:00:03]} c6 {[%clk 00:17:42]} {[%emt 00:00:35]} 7. Nc3 {[%clk 00:18:20]}
{[%emt 00:00:02]} d6 {[%clk 00:17:45]} {[%emt 00:00:02]} 8. h3 {[%clk
00:17:28]} {[%emt 00:00:57]} h6 {[%clk 00:16:54]} {[%emt 00:00:56]} 9. Be3
{[%clk 00:17:13]} {[%emt 00:00:19]} Qc7 {[%clk 00:16:33]} {[%emt 00:00:26]} 10.
Ne2 {[%clk 00:16:27]} {[%emt 00:00:51]} d5 {[%clk 00:16:04]} {[%emt 00:00:35]}
11. exd5 {[%clk 00:15:53]} {[%emt 00:00:39]} cxd5 {[%clk 00:16:04]} {[%emt
00:00:05]} 12. O-O {[%clk 00:14:52]} {[%emt 00:01:06]} Bd6 {[%clk 00:15:23]}
{[%emt 00:00:46]} 13. c3 {[%clk 00:12:06]} {[%emt 00:02:50]} Bd7 {[%clk
00:14:35]} {[%emt 00:00:52]} 14. Qd2 {[%clk 00:10:57]} {[%emt 00:01:14]} g5
{[%clk 00:10:21]} {[%emt 00:04:20]} 15. Rfd1 {[%clk 00:07:48]} {[%emt
00:03:14]} Bc6 {[%clk 00:08:21]} {[%emt 00:02:05]} 16. d4 {[%clk 00:05:56]}
{[%emt 00:01:56]} e4 {[%clk 00:08:03]} {[%emt 00:00:24]} 17. Ne5 {[%clk
00:05:38]} {[%emt 00:00:23]} Bxe5 {[%clk 00:07:01]} {[%emt 00:01:06]} 18. dxe5
{[%clk 00:05:42]} {[%emt 00:00:04]} Qxe5 {[%clk 00:06:37]} {[%emt 00:00:28]} 19.
Qd4 {[%clk 00:04:50]} {[%emt 00:00:56]} Qe6 {[%clk 00:05:02]} {[%emt 00:01:40]}
20. Ng3 {[%clk 00:03:49]} {[%emt 00:01:06]} Rg8 {[%clk 00:04:34]} {[%emt
00:00:34]} 21. Qd2 {[%clk 00:03:04]} {[%emt 00:00:50]} Nd7 {[%clk 00:04:03]}
{[%emt 00:00:34]} 22. Ne2 {[%clk 00:02:41]} {[%emt 00:00:29]} Qg6 {[%clk
00:02:43]} {[%emt 00:01:23]} 23. Kf1 {[%clk 00:02:01]} {[%emt 00:00:48]} f5
{[%clk 00:02:24]} {[%emt 00:00:24]} 24. Bd4 {[%clk 00:01:26]} {[%emt 00:00:40]}
Bb5 {[%clk 00:01:47]} {[%emt 00:00:42]} 25. a4 {[%clk 00:01:17]} {[%emt
00:00:14]} Bc4 {[%clk 00:01:24]} {[%emt 00:00:29]} 26. Ra3 {[%clk 00:00:42]}
{[%emt 00:00:39]} f4 {[%clk 00:01:12]} {[%emt 00:00:17]} 27. Ke1 {[%clk
00:00:31]} {[%emt 00:00:15]} Rf8 {[%clk 00:00:40]} {[%emt 00:00:38]} 28. Rc1
{[%clk 00:00:18]} {[%emt 00:00:18]} Qf7 {[%clk 00:00:23]} {[%emt 00:00:21]} 29.
Kd1 {[%clk 00:00:13]} {[%emt 00:00:10]} f3 {[%clk 00:00:20]} {[%emt 00:00:09]}
30. gxf3 {[%clk 00:00:11]} {[%emt 00:00:08]} Qxf3 {[%clk 00:00:17]} {[%emt
00:00:07]} 31. Qe3 {[%clk 00:00:14]} {[%emt 00:00:02]} Bxe2+ {[%clk 00:00:14]}
{[%emt 00:00:09]} 32. Qxe2 {[%clk 00:00:18]} {[%emt 00:00:01]} Qxh3 {[%clk
00:00:11]} {[%emt 00:00:07]} 33. Kd2 {[%clk 00:00:15]} {[%emt 00:00:08]} Qf3
{[%clk 00:00:14]} {[%emt 00:00:01]} 34. Rf1 {[%clk 00:00:12]} {[%emt 00:00:10]}
Qxe2+ {[%clk 00:00:15]} {[%emt 00:00:04]} 35. Kxe2 {[%clk 00:00:16]} {[%emt
00:00:01]} Rf3 {[%clk 00:00:19]} {[%emt 00:00:01]} 36. Rh1 {[%clk 00:00:17]}
{[%emt 00:00:03]} O-O-O {[%clk 00:00:08]} {[%emt 00:00:16]} 37. Rxh6 {[%clk
00:00:19]} {[%emt 00:00:03]} Rg8 {[%clk 00:00:10]} {[%emt 00:00:02]} 38. Rh8
{[%clk 00:00:19]} {[%emt 00:00:06]} Rxh8 {[%clk 00:00:13]} {[%emt 00:00:03]} 39.
Bxh8 {[%clk 00:00:23]} Nf6 {[%clk 00:00:15]} {[%emt 00:00:03]} 40. Bxf6 {[%clk
00:00:26]} {[%emt 00:00:02]} Rxf6 {[%clk 00:00:19]} {[%emt 00:00:01]} 41. Ra1
{[%clk 00:00:31]} Rf5 {[%clk 00:00:19]} {[%emt 00:00:04]} 42. Rh1 {[%clk
00:00:33]} {[%emt 00:00:03]} Kc7 {[%clk 00:00:22]} {[%emt 00:00:02]} 43. Rh7+
{[%clk 00:00:37]} Kb6 {[%clk 00:00:27]} {[%emt 00:00:01]} 44. b4 {[%clk
00:00:40]} {[%emt 00:00:02]} Rf3 {[%clk 00:00:07]} {[%emt 00:00:25]} 45. Rh6+
{[%clk 00:00:44]} {[%emt 00:00:01]} Kc7 {[%clk 00:00:10]} {[%emt 00:00:02]} 46.
Rg6 {[%clk 00:00:46]} {[%emt 00:00:02]} Rf5 {[%clk 00:00:12]} {[%emt 00:00:04]}
47. Rg7+ {[%clk 00:00:48]} {[%emt 00:00:03]} Kb6 {[%clk 00:00:14]} {[%emt
00:00:03]} 48. Rg6+ {[%clk 00:00:51]} {[%emt 00:00:02]} Kc7 {[%clk 00:00:17]}
{[%emt 00:00:02]} 49. Rg7+ {[%clk 00:00:54]} {[%emt 00:00:02]} 1/2-1/2